fUST/lending_fUST_20250412
["ID","MTS","AMOUNT","RATE_DAILY","PERIOD"]
[357829516,1744459839651,-500.0,0.00023989,2]
[357829518,1744459839660,-179.77941715,0.00023989,2]
[357829520,1744459839671,-2930.9845821,0.00023989,2]
[357829523,1744459839682,-500.0,0.00023989,2]
[357829525,1744459839691,-500.0,0.00023989,2]
[357829527,1744459839701,-836.58178256,0.00023989,2]
[357829530,1744459839725,-2094.40279954,0.00023989,2]
[357829532,1744459839735,-500.0,0.00023989,2]
[357829534,1744459839744,-2930.9845821,0.00023989,2]
[357829536,1744459839754,-500.0,0.00023989,2]
[357829538,1744459839764,-500.0,0.00023989,2]
[357829540,1744459839774,-2930.9845821,0.00023989,2]
[357829543,1744459839789,-500.0,0.00023989,2]
[357829545,1744459839800,-2930.9845821,0.00023989,2]
[357829547,1744459839810,-500.0,0.00023989,2]
[357829549,1744459839820,-2930.9845821,0.00023989,2]
[357829551,1744459839831,-2930.9845821,0.00023989,2]
[357829553,1744459839841,-500.0,0.00023989,2]
[357829555,1744459839850,-2930.9845821,0.00023989,2]
[357829557,1744459839861,-500.0,0.00023989,2]
[357829559,1744459839871,-2930.9845821,0.00023989,2]
[357829561,1744459839881,-500.0,0.00023989,2]
[357829563,1744459839892,-2930.9845821,0.00023989,2]
[357829565,1744459839902,-500.0,0.00023989,2]
[357829567,1744459839913,-2930.9845821,0.00023989,2]
[357829569,1744459839922,-383.03886419,0.00023989,2]
[357829571,1744459839933,-500.0,0.00023989,2]
[357829573,1744459839943,-2930.9845821,0.00023989,2]
[357829575,1744459839954,-500.0,0.00023989,2]
[357829577,1744459839964,-2930.9845821,0.00023989,2]
[357829580,1744459839975,-2930.9845821,0.00023989,2]
[357829582,1744459839985,-500.0,0.00023989,2]
[357829584,1744459839996,-2930.9845821,0.00023989,2]
[357829586,1744459840007,-2930.9845821,0.00023989,2]
[357829588,1744459840017,-500.0,0.00023989,2]
[357829590,1744459840029,-2930.9845821,0.00023989,2]
[357829592,1744459840039,-500.0,0.00023989,2]
[357829594,1744459840049,-500.0,0.00023989,2]
[357829596,1744459840060,-2930.9845821,0.00023989,2]
[357829599,1744459840070,-2930.9845821,0.00023989,2]
[357829601,1744459840081,-500.0,0.00023989,2]
[357829603,1744459840091,-2930.9845821,0.00023989,2]
[357829605,1744459840102,-2930.9845821,0.00023989,2]
[357829607,1744459840112,-2930.9845821,0.00023989,2]
[357829609,1744459840122,-2930.9845821,0.00023989,2]
[357829611,1744459840132,-636.34701024,0.00023989,2]
[357829989,1744459844260,-2294.63757186,0.00023989,2]
[357829991,1744459844270,-2930.9845821,0.00023989,2]
[357829992,1744459844280,-2930.9845821,0.00023989,2]
[357829994,1744459844290,-2930.9845821,0.00023989,2]
[357829996,1744459844300,-2930.9845821,0.00023989,2]
[357829998,1744459844310,-2930.9845821,0.00023989,2]
[357830000,1744459844320,-2930.9845821,0.00023989,2]
[357830002,1744459844330,-2930.9845821,0.00023989,2]
[357830003,1744459844340,-2930.9845821,0.00023989,2]
[357830005,1744459844349,-2930.9845821,0.00023989,2]
[357830007,1744459844360,-2930.9845821,0.00023989,2]
[357830009,1744459844371,-2930.9845821,0.00023989,2]
[357830011,1744459844380,-1382.16534346,0.00023989,2]
[357830200,1744459846815,-1548.81923864,0.00023989,2]
[357830201,1744459846826,-2930.9845821,0.00023989,2]
[357830202,1744459846837,-2930.9845821,0.00023989,2]
[357830203,1744459846847,-2930.9845821,0.00023989,2]
[357830204,1744459846857,-2930.9845821,0.00023989,2]
[357830205,1744459846867,-2930.9845821,0.00023989,2]
[357830206,1744459846877,-2930.9845821,0.00023989,2]
[357830207,1744459846887,-2930.9845821,0.00023989,2]
[357830208,1744459846897,-2834.28868666,0.00023989,2]
[357831948,1744459864588,-190.95493405,0.00023824,2]
[357832003,1744459887802,-159.26751281,0.00023824,2]
[357832004,1744459904051,-199.29166671,0.000239,5]
[357832006,1744460015459,153.3,0.000269,31]
[357832007,1744460015517,153.3,0.000269,31]
[357832008,1744460015578,153.3,0.000269,31]
[357832009,1744460102071,-207.9620035,0.00022941,2]
[357832010,1744460163404,-191.72352887,0.00022941,2]
[357832011,1744460195561,-183.8779309,0.00022941,2]
[357832012,1744460213952,-200.0,0.00022941,2]
[357832013,1744460222800,-250.0,0.000239,5]
[357832014,1744460252720,499.97000001,0.00028,10]
[357832016,1744460399268,56000.0,0.00028,31]
[357832017,1744460619353,153.31,0.000269,31]
[357832018,1744460619434,153.31,0.000269,31]
[357832025,1744460925995,1000.0,0.00028,10]
[357832061,1744461038043,-250.0,0.00022301,2]
[357832063,1744461038054,-268.230746,0.00022574,2]
[357832065,1744461038064,-935.1161589,0.00022643,2]
[357832067,1744461038074,-1679.9622999,0.000229,2]
[357832069,1744461038084,-3864.49963413,0.00022941,2]
[357832071,1744461038093,-913.18738035,0.00023316,2]
[357832073,1744461038103,-300.0,0.00023415,2]
[357832075,1744461038114,-185.396,0.00023416,3]
[357832077,1744461038124,-7138.73367842,0.00023416,2]
[357832080,1744461038137,-17761.26632158,0.00023416,2]
[357832082,1744461038147,-204.90518406,0.00023416,3]
[357832084,1744461038157,-649.77755314,0.00023824,2]
[357832086,1744461038167,-8990.38676786,0.00023882,2]
[357832088,1744461038178,-313.84122514,0.00023882,2]
[357832090,1744461038188,-4250.44275655,0.000239,5]
[357832092,1744461038198,-500.0,0.00023973,2]
[357832094,1744461038208,-500.0,0.00023973,2]
[357832096,1744461038218,-500.0,0.00023973,2]
[357832098,1744461038228,-448.30609728,0.00023979,2]
[357832100,1744461038239,-500.0,0.00023979,2]
[357832102,1744461038248,-191.72352887,0.00023979,2]
[357832104,1744461038259,-2311.19922398,0.00023979,2]
[357832106,1744461038269,-500.0,0.00023979,2]
[357832108,1744461038278,-2311.19922398,0.00023979,2]
[357832110,1744461038288,-2311.19922398,0.00023979,2]
[357832113,1744461038299,-500.0,0.00023979,2]
[357832115,1744461038308,-2311.19922398,0.00023979,2]
[357832117,1744461038317,-500.0,0.00023979,2]
[357832119,1744461038331,-2311.19922398,0.00023979,2]
[357832121,1744461038341,-2311.19922398,0.00023979,2]
[357832123,1744461038350,-247.87762689,0.00023979,2]
[357832125,1744461038360,-2311.19922398,0.00023979,2]
[357832127,1744461038371,-618.82811849,0.00023979,2]
[357832129,1744461038383,-1692.37110549,0.00023979,2]
[357832131,1744461038394,-87.03148014,0.00023979,2]
[357832134,1744461038408,-2224.16774384,0.00023979,2]
[357832136,1744461038419,-2311.19922398,0.00023979,2]
[357832138,1744461038428,-2311.19922398,0.00023979,2]
[357832140,1744461038438,-2311.19922398,0.00023979,2]
[357832142,1744461038447,-2311.19922398,0.00023979,2]
[357832144,1744461038457,-2311.19922398,0.00023979,2]
[357832148,1744461038476,-2311.19922398,0.00023979,2]
[357832150,1744461038491,-2311.19922398,0.00023979,2]
[357832152,1744461038501,-2311.19922398,0.00023979,2]
[357832154,1744461038512,-2311.19922398,0.00023979,2]
[357832157,1744461038522,-2311.19922398,0.00023979,2]
[357832159,1744461038531,-2311.19922398,0.00023979,2]
[357832161,1744461038542,-2311.19922398,0.00023979,2]
[357832163,1744461038552,-2311.19922398,0.00023979,2]
[357832165,1744461038563,-2311.19922398,0.00023979,2]
[357832167,1744461038572,-2311.19922398,0.00023979,2]
[357832169,1744461038582,-488.04393356,0.00023979,2]
[357832343,1744461040228,-0.01393931,0.00023979,2]
[357832492,1744461041731,-300.0,0.00023979,2]
[357832649,1744461042991,-1523.14135111,0.00023979,2]
[357832651,1744461043003,-2311.19922398,0.00023979,2]
[357832653,1744461043015,-2311.19922398,0.00023979,2]
[357832655,1744461043026,-2311.19922398,0.00023979,2]
[357832658,1744461043036,-2311.19922398,0.00023979,2]
[357832660,1744461043047,-2311.19922398,0.00023979,2]
[357832662,1744461043058,-2311.19922398,0.00023979,2]
[357832664,1744461043068,-2311.19922398,0.00023979,2]
[357832666,1744461043079,-2311.19922398,0.00023979,2]
[357832668,1744461043089,-1674.35672365,0.00023979,2]
[357833224,1744461048592,-151.0,0.00023981,7]
[357833228,1744461048617,-26.7817906,0.00023981,7]
[357833800,1744461054514,-192.70139468,0.00023981,7]
[357834481,1744461061811,306.07,0.00023,120]
[357834499,1744461063606,-300.0,0.00023978,2]
[357834506,1744461070735,-185.18988755,0.00023973,2]
[357834507,1744461078826,-151.06293082,0.00023973,2]
[357834508,1744461082100,-159.3633804,0.00022985,2]
[357834512,1744461118676,-200.0,0.00022985,2]
[357834515,1744461124541,-251.14950577,0.00022984,2]
[357834521,1744461142120,-200.0,0.00023969,3]
[357834524,1744461156733,-48.85049423,0.00022984,2]
[357834525,1744461156758,-127.05463507,0.00022985,2]
[357834532,1744461223074,153.31,0.000269,31]
[357834533,1744461223108,153.31,0.000269,31]
[357834535,1744461826217,153.32,0.000269,31]
[357834536,1744461826274,153.32,0.000269,31]
[357834538,1744461904065,-156.62859419,0.00022926,2]
[357834540,1744461932667,-13.57250641,0.00022926,2]
[357834541,1744461932693,-176.55389359,0.00022984,2]
[357834542,1744461939771,-212.2759014,0.000239,5]
[357834543,1744461978698,151.0,0.000267,16]
[357834544,1744461979007,151.0,0.000264,10]
[357834548,1744462016175,-23.44610641,0.00022984,2]
[357834549,1744462016200,-194.27954569,0.00022984,2]
[357834552,1744462068055,-250.0,0.00022916,2]
[357834553,1744462068081,-32.2743479,0.00022984,2]
[357834559,1744462232340,-300.0,0.00022931,2]
[357834560,1744462232351,-3746.63890435,0.00022932,2]
[357834561,1744462232363,-18814.77950914,0.00022932,2]
[357834562,1744462232375,-1419.49748092,0.00022932,2]
[357834563,1744462232389,-919.08410559,0.00022932,2]
[357834564,1744462232399,-1115.93426236,0.0002386,2]
[357834565,1744462232410,-1012.47760091,0.0002387,2]
[357834566,1744462232420,-507.9620035,0.00023873,2]
[357834567,1744462232430,-4575.62436307,0.000239,5]
[357834568,1744462232440,-151.0,0.00023958,2]
[357834569,1744462232450,-181.62,0.0002396,3]
[357834570,1744462232460,-544.88,0.0002396,3]
[357834571,1744462232470,-6292.42658374,0.0002397,2]
[357834572,1744462232480,-14940.44309264,0.0002397,3]
[357834573,1744462232490,-500.0,0.0002397,2]
[357834574,1744462232500,-500.0,0.0002397,2]
[357834575,1744462232510,-500.0,0.0002397,2]
[357834576,1744462232519,-500.0,0.0002397,2]
[357834577,1744462232529,-500.0,0.0002397,2]
[357834578,1744462232539,-448.09085891,0.0002397,2]
[357834579,1744462232549,-500.0,0.0002397,2]
[357834580,1744462232560,-345.0598945,0.0002397,2]
[357834581,1744462232569,-500.0,0.0002397,2]
[357834582,1744462232579,-192.70139468,0.0002397,2]
[357834583,1744462232590,-500.0,0.0002397,2]
[357834584,1744462232600,-500.0,0.0002397,2]
[357834585,1744462232611,-380.50851726,0.0002397,2]
[357834586,1744462232621,-594.53045766,0.0002397,2]
[357834587,1744462232631,-500.0,0.0002397,2]
[357834588,1744462232642,-500.0,0.0002397,2]
[357834589,1744462232652,-500.0,0.0002397,2]
[357834590,1744462232662,-500.0,0.0002397,2]
[357834591,1744462232672,-500.0,0.0002397,2]
[357834592,1744462232682,-410.98218602,0.0002397,2]
[357834593,1744462232692,-500.0,0.0002397,2]
[357834594,1744462232702,-500.0,0.0002397,2]
[357834595,1744462232712,-500.0,0.0002397,2]
[357834596,1744462232722,-500.0,0.0002397,2]
[357834597,1744462232732,-2277.77303989,0.0002397,2]
[357834598,1744462232743,-2277.77303989,0.0002397,2]
[357834599,1744462232754,-2277.77303989,0.0002397,2]
[357834600,1744462232764,-2277.77303989,0.0002397,2]
[357834601,1744462232775,-2277.77303989,0.0002397,2]
[357834602,1744462232786,-2277.77303989,0.0002397,2]
[357834603,1744462232796,-2277.77303989,0.0002397,2]
[357834604,1744462232806,-2277.77303989,0.0002397,2]
[357834605,1744462232816,-2277.77303989,0.0002397,2]
[357834606,1744462232826,-2277.77303989,0.0002397,2]
[357834607,1744462232835,-2277.77303989,0.0002397,2]
[357834608,1744462232846,-2110.14600506,0.0002397,2]
[357834864,1744462240494,-0.00413088,0.00023969,2]
[357834866,1744462240507,-524.5410483,0.00023969,2]
[357834868,1744462240517,-1801.13094341,0.0002397,2]
[357835165,1744462243201,-158.5646888,0.00022974,2]
[357835168,1744462243212,-2528.95672594,0.0002397,2]
[357835346,1744462244927,-184.99708714,0.0002397,2]
[357835471,1744462246107,-3027.11906991,0.0002397,2]
[357835709,1744462248799,-177.00922822,0.0002397,2]
[357836553,1744462429257,153.33,0.000269,31]
[357836554,1744462429297,153.33,0.000269,31]
[357836559,1744463032754,153.34,0.000269,31]
[357836560,1744463218093,1000.0,0.00028,90]
[357837067,1744463432360,-300.0,0.00021459,2]
[357837068,1744463432371,-24900.0,0.0002146,2]
[357837069,1744463432383,-208.6275852,0.00021938,2]
[357837070,1744463432392,-3927.7123757,0.00021946,2]
[357837071,1744463432402,-250.0,0.00021986,2]
[357837072,1744463432411,-486.02067883,0.000221,3]
[357837073,1744463432422,-4049.9104036,0.00022887,2]
[357837074,1744463432431,-50000.0,0.00022887,2]
[357837075,1744463432441,-4423.1035509,0.000229,4]
[357837076,1744463432452,-368.1033256,0.0002291,2]
[357837077,1744463432462,-379.4310263,0.00022931,2]
[357837078,1744463432473,-3146.21329187,0.00022972,2]
[357837079,1744463432483,-500.0,0.00022973,2]
[357837080,1744463432493,-500.0,0.00022973,2]
[357837081,1744463432502,-500.0,0.00022973,2]
[357837083,1744463432512,-500.0,0.00022973,2]
[357837085,1744463432522,-500.0,0.00022973,2]
[357837087,1744463432532,-500.0,0.00022973,2]
[357837089,1744463432542,-500.0,0.00022973,2]
[357837091,1744463432552,-500.0,0.00022973,2]
[357837093,1744463432562,-500.0,0.00022973,2]
[357837095,1744463432572,-151.0,0.00022974,2]
[357837097,1744463432582,-363.24,0.00022975,3]
[357837099,1744463432592,-178.10889812,0.00022984,2]
[357837101,1744463432602,-245.06284317,0.00022984,2]
[357837103,1744463432612,-7470.22154632,0.00022985,3]
[357837105,1744463432623,-151.0,0.00022985,7]
[357837107,1744463432634,-151.0,0.00022985,7]
[357837109,1744463432645,-151.0,0.00022985,7]
[357837112,1744463432655,-500.0,0.00022985,2]
[357837114,1744463432665,-500.0,0.00022985,2]
[357837116,1744463432675,-457.158567,0.00022985,2]
[357837118,1744463432684,-500.0,0.00022985,2]
[357837120,1744463432694,-12398.89887539,0.00022985,2]
[357837122,1744463432704,-500.0,0.00022985,2]
[357837124,1744463432714,-500.0,0.00022985,2]
[357837126,1744463432724,-522.34190848,0.00022985,2]
[357837128,1744463432734,-500.0,0.00022985,2]
[357837130,1744463432744,-500.0,0.00022985,2]
[357837132,1744463432754,-12398.89887539,0.00022985,2]
[357837134,1744463432764,-500.0,0.00022985,2]
[357837136,1744463432774,-500.0,0.00022985,2]
[357837138,1744463432784,-500.0,0.00022985,2]
[357837140,1744463432794,-12398.89887539,0.00022985,2]
[357837142,1744463432804,-500.0,0.00022985,2]
[357837144,1744463432814,-500.0,0.00022985,2]
[357837146,1744463432823,-500.0,0.00022985,2]
[357837149,1744463432834,-12398.89887539,0.00022985,2]
[357837151,1744463432844,-500.0,0.00022985,2]
[357837153,1744463432855,-500.0,0.00022985,2]
[357837155,1744463432865,-12398.89887539,0.00022985,2]
[357837157,1744463432876,-500.0,0.00022985,2]
[357837159,1744463432886,-354.21864214,0.00022985,2]
[357837161,1744463432895,-500.0,0.00022985,2]
[357837163,1744463432906,-12398.89887539,0.00022985,2]
[357837165,1744463432917,-500.0,0.00022985,2]
[357837167,1744463432927,-12398.89887539,0.00022985,2]
[357837169,1744463432936,-500.0,0.00022985,2]
[357837171,1744463432946,-500.0,0.00022985,2]
[357837173,1744463432955,-500.0,0.00022985,2]
[357837175,1744463432965,-500.0,0.00022985,2]
[357837177,1744463432976,-12398.89887539,0.00022985,2]
[357837179,1744463432985,-500.0,0.00022985,2]
[357837181,1744463432996,-500.0,0.00022985,2]
[357837183,1744463433005,-12398.89887539,0.00022985,2]
[357837185,1744463433016,-500.0,0.00022985,2]
[357837187,1744463433028,-500.0,0.00022985,2]
[357837190,1744463433038,-500.0,0.00022985,2]
[357837192,1744463433048,-12398.89887539,0.00022985,2]
[357837194,1744463433058,-500.0,0.00022985,2]
[357837196,1744463433068,-500.0,0.00022985,2]
[357837198,1744463433078,-12398.89887539,0.00022985,2]
[357837200,1744463433088,-500.0,0.00022985,2]
[357837202,1744463433099,-500.0,0.00022985,2]
[357837204,1744463433109,-500.0,0.00022985,2]
[357837206,1744463433120,-12398.89887539,0.00022985,2]
[357837208,1744463433130,-500.0,0.00022985,2]
[357837210,1744463433141,-12398.89887539,0.00022985,2]
[357837212,1744463433151,-500.0,0.00022985,2]
[357837214,1744463433161,-550.93455002,0.00022985,2]
[357837216,1744463433172,-500.0,0.00022985,2]
[357837218,1744463433182,-12398.89887539,0.00022985,2]
[357837220,1744463433193,-500.0,0.00022985,2]
[357837222,1744463433204,-12398.89887539,0.00022985,2]
[357837224,1744463433215,-500.0,0.00022985,2]
[357837226,1744463433225,-12398.89887539,0.00022985,2]
[357837228,1744463433235,-500.0,0.00022985,2]
[357837230,1744463433246,-12398.89887539,0.00022985,2]
[357837232,1744463433255,-500.0,0.00022985,2]
[357837234,1744463433266,-500.0,0.00022985,2]
[357837237,1744463433276,-12398.89887539,0.00022985,2]
[357837239,1744463433287,-12398.89887539,0.00022985,2]
[357837241,1744463433298,-500.0,0.00022985,2]
[357837243,1744463433312,-12398.89887539,0.00022985,2]
[357837245,1744463433323,-500.0,0.00022985,2]
[357837247,1744463433333,-12398.89887539,0.00022985,2]
[357837249,1744463433343,-500.0,0.00022985,2]
[357837251,1744463433353,-12398.89887539,0.00022985,2]
[357837253,1744463433363,-5721.55176985,0.00022985,2]
[357837255,1744463433378,-6677.34710554,0.00022985,2]
[357837257,1744463433388,-12398.89887539,0.00022985,2]
[357837259,1744463433398,-12398.89887539,0.00022985,2]
[357837261,1744463433408,-12398.89887539,0.00022985,2]
[357837263,1744463433418,-12398.89887539,0.00022985,2]
[357837265,1744463433428,-12398.89887539,0.00022985,2]
[357837268,1744463433439,-12398.89887539,0.00022985,2]
[357837270,1744463433451,-12398.89887539,0.00022985,2]
[357837272,1744463433462,-12398.89887539,0.00022985,2]
[357837274,1744463433472,-12398.89887539,0.00022985,2]
[357837276,1744463433483,-12398.89887539,0.00022985,2]
[357837278,1744463433493,-12398.89887539,0.00022985,2]
[357837280,1744463433505,-12398.89887539,0.00022985,2]
[357837282,1744463433516,-12398.89887539,0.00022985,2]
[357837284,1744463433527,-12398.89887539,0.00022985,2]
[357837286,1744463433537,-12398.89887539,0.00022985,2]
[357837288,1744463433547,-12398.89887539,0.00022985,2]
[357837290,1744463433557,-12398.89887539,0.00022985,2]
[357837292,1744463433568,-12398.89887539,0.00022985,2]
[357837294,1744463433578,-12398.89887539,0.00022985,2]
[357837297,1744463433589,-12398.89887539,0.00022985,2]
[357837299,1744463433601,-12398.89887539,0.00022985,2]
[357837301,1744463433611,-12398.89887539,0.00022985,2]
[357837303,1744463433622,-12398.89887539,0.00022985,2]
[357837305,1744463433632,-500.0,0.00022985,2]
[357837307,1744463433642,-500.0,0.00022985,2]
[357837309,1744463433653,-499.99999999,0.00022985,2]
[357837311,1744463433663,-15096.80448139,0.00022985,2]
[357837313,1744463433673,-15096.80448139,0.00022985,2]
[357837315,1744463433683,-15096.80448139,0.00022985,2]
[357837317,1744463433694,-15096.80448139,0.00022985,2]
[357837319,1744463433705,-15096.80448139,0.00022985,2]
[357837321,1744463433716,-15096.80448139,0.00022985,2]
[357837323,1744463433726,-15096.80448139,0.00022985,2]
[357837326,1744463433737,-15096.80448139,0.00022985,2]
[357837328,1744463433747,-15096.80448139,0.00022985,2]
[357837330,1744463433757,-15096.80448139,0.00022985,2]
[357837332,1744463433768,-15096.80448139,0.00022985,2]
[357837334,1744463433778,-15096.80448139,0.00022985,2]
[357837336,1744463433788,-15096.80448139,0.00022985,2]
[357837338,1744463433798,-15096.80448139,0.00022985,2]
[357837340,1744463433809,-15096.80448139,0.00022985,2]
[357837342,1744463433819,-15096.80448139,0.00022985,2]
[357837344,1744463433828,-15096.80448139,0.00022985,2]
[357837346,1744463433839,-15096.80448139,0.00022985,2]
[357837348,1744463433849,-15096.80448139,0.00022985,2]
[357837350,1744463433859,-15096.80448139,0.00022985,2]
[357837352,1744463433870,-15096.80448139,0.00022985,2]
[357837354,1744463433880,-15096.80448139,0.00022985,2]
[357837356,1744463433891,-15096.80448139,0.00022985,2]
[357837358,1744463433901,-4732.36693294,0.00022985,2]
[357837361,1744463433914,-3415.89375617,0.00022985,2]
[357837363,1744463433927,-6948.54379228,0.00022985,2]
[357837365,1744463433939,-15096.80448139,0.00022985,2]
[357837367,1744463433950,-15096.80448139,0.00022985,2]
[357837369,1744463433960,-15096.80448139,0.00022985,2]
[357837371,1744463433970,-15096.80448139,0.00022985,2]
[357837373,1744463433980,-15096.80448139,0.00022985,2]
[357837375,1744463433990,-15096.80448139,0.00022985,2]
[357837377,1744463434000,-14935.05300481,0.00022985,2]
[357837379,1744463434010,-14935.05300481,0.00022985,2]
[357837381,1744463434020,-4603.07108405,0.00022985,2]
[357837384,1744463434033,-10331.98192076,0.00022985,2]
[357837386,1744463434043,-14935.05300481,0.00022985,2]
[357837388,1744463434054,-14935.05300481,0.00022985,2]
[357837390,1744463434063,-14097.91206962,0.00022985,2]
[357837392,1744463434076,-837.14093519,0.00022985,2]
[357837394,1744463434085,-1968.86912207,0.00022985,2]
[357837768,1744463438425,-500.0,0.00022886,2]
[357837769,1744463438436,-398.96979116,0.00022886,2]
[357837770,1744463438448,-2242.03761086,0.00022886,2]
[357837771,1744463438459,-500.0,0.00022886,2]
[357837772,1744463438469,-650.46873802,0.00022886,2]
[357837773,1744463438479,-2641.00740202,0.00022886,2]
[357837774,1744463438490,-394.54828334,0.00022886,2]
[357837775,1744463438500,-2641.00740202,0.00022886,2]
[357837776,1744463438510,-2641.00740202,0.00022886,2]
[357837777,1744463438520,-2641.00740202,0.00022886,2]
[357837778,1744463438530,-2641.00740202,0.00022886,2]
[357837779,1744463438541,-2641.00740202,0.00022886,2]
[357837780,1744463438551,-2641.00740202,0.00022886,2]
[357837781,1744463438560,-2641.00740202,0.00022886,2]
[357837782,1744463438571,-2641.00740202,0.00022886,2]
[357837783,1744463438581,-2641.00740202,0.00022886,2]
[357837784,1744463438591,-2641.00740202,0.00022886,2]
[357837785,1744463438600,-2641.00740202,0.00022886,2]
[357837786,1744463438610,-2641.00740202,0.00022886,2]
[357837787,1744463438620,-2641.00740202,0.00022886,2]
[357837788,1744463438631,-2641.00740202,0.00022886,2]
[357837789,1744463438640,-2641.00740202,0.00022886,2]
[357837790,1744463438650,-2641.00740202,0.00022886,2]
[357837791,1744463438660,-2641.00740202,0.00022886,2]
[357837792,1744463438670,-2641.00740202,0.00022886,2]
[357837793,1744463438680,-2641.00740202,0.00022886,2]
[357837794,1744463438690,-2641.00740202,0.00022886,2]
[357837795,1744463438701,-2641.00740202,0.00022886,2]
[357837796,1744463438710,-2641.00740202,0.00022886,2]
[357837797,1744463438720,-2641.00740202,0.00022886,2]
[357837798,1744463438730,-2641.00740202,0.00022886,2]
[357837799,1744463438740,-2641.00740202,0.00022886,2]
[357837800,1744463438750,-2641.00740202,0.00022886,2]
[357837801,1744463438760,-2641.00740202,0.00022886,2]
[357837802,1744463438771,-2641.00740202,0.00022886,2]
[357837803,1744463438782,-2641.00740202,0.00022886,2]
[357837804,1744463438792,-2641.00740202,0.00022886,2]
[357837805,1744463438802,-2641.00740202,0.00022886,2]
[357837806,1744463438813,-2641.00740202,0.00022886,2]
[357837807,1744463438823,-2641.00740202,0.00022886,2]
[357837808,1744463438834,-2641.00740202,0.00022886,2]
[357837809,1744463438844,-2641.00740202,0.00022886,2]
[357837810,1744463438854,-2641.00740202,0.00022886,2]
[357837811,1744463438864,-2641.00740202,0.00022886,2]
[357837812,1744463438874,-2641.00740202,0.00022886,2]
[357837813,1744463438885,-2641.00740202,0.00022886,2]
[357837814,1744463438895,-2641.00740202,0.00022886,2]
[357837815,1744463438905,-2641.00740202,0.00022886,2]
[357837816,1744463438915,-2641.00740202,0.00022886,2]
[357837817,1744463438925,-2641.00740202,0.00022886,2]
[357837818,1744463438935,-2641.00740202,0.00022886,2]
[357837819,1744463438945,-2641.00740202,0.00022886,2]
[357837820,1744463438957,-2641.00740202,0.00022886,2]
[357837821,1744463438967,-651.25532638,0.00022984,2]
[357837822,1744463438977,-151.0,0.00022986,7]
[357837823,1744463438987,-151.0,0.00022986,7]
[357837824,1744463438997,-175.885012,0.00022986,7]
[357837825,1744463439007,-151.0,0.00022986,7]
[357837826,1744463439017,-151.0,0.00022986,7]
[357837827,1744463439027,-151.0,0.00022986,7]
[357837828,1744463439036,-151.0,0.00022986,7]
[357837829,1744463439046,-151.0,0.00022986,7]
[357837830,1744463439055,-151.0,0.00022986,7]
[357837831,1744463439064,-151.0,0.00022986,7]
[357837832,1744463439074,-151.0,0.00022986,7]
[357837833,1744463439083,-177.567865,0.00022986,7]
[357837834,1744463439092,-151.0,0.00022988,7]
[357837835,1744463439102,-151.0,0.00022988,7]
[357837836,1744463439111,-151.0,0.00022988,7]
[357837837,1744463439121,-151.0,0.00022988,7]
[357837838,1744463439130,-151.0,0.00022988,7]
[357837839,1744463439139,-151.0,0.00022988,7]
[357837840,1744463439149,-151.0,0.00022988,7]
[357837841,1744463439159,-151.0,0.00022988,7]
[357837842,1744463439168,-151.0,0.00022988,7]
[357837843,1744463439177,-151.0,0.00022988,7]
[357837844,1744463439187,-151.0,0.00022988,7]
[357837845,1744463439197,-151.0,0.00022988,7]
[357837846,1744463439208,-151.0,0.00022988,7]
[357837847,1744463439218,-151.648432,0.00022988,7]
[357837848,1744463439228,-151.0,0.00022988,7]
[357837849,1744463439238,-151.0,0.00022988,7]
[357837850,1744463439248,-247.0,0.00022988,7]
[357837851,1744463439258,-151.0,0.00022988,7]
[357837852,1744463439268,-151.0,0.00022988,7]
[357837853,1744463439278,-151.0,0.00022988,7]
[357837854,1744463439289,-151.0,0.00022988,7]
[357837855,1744463439299,-263.433644,0.00022988,7]
[357837856,1744463439313,-1707.159731,0.00022988,2]
[357837857,1744463439323,-1707.159731,0.00022988,2]
[357837858,1744463439333,-1707.159731,0.00022988,2]
[357837859,1744463439343,-1707.159731,0.00022988,2]
[357837860,1744463439355,-1707.159731,0.00022988,2]
[357837861,1744463439365,-181.239584,0.00022988,7]
[357837862,1744463439375,-1707.159731,0.00022988,2]
[357837863,1744463439386,-181.239584,0.00022988,7]